[Event "Titled Tuesday Blitz May 23 Early 2023"]
[White "Madaminov, Mukhiddin"]
[Black "MKlose11"]
[WhiteFideId "14210703"]
[WhiteElo "2511"]
[BlackElo "2685"]
[Result "1-0"]
[Round "05"]
[TimeControl "180+2"]
[Date "2023.05.23"]
[WhiteClock "0:00:36"]
[BlackClock "0:00:00"]

1. Nf3 {[%clk 0:03:00]}  Nf6 {[%clk 0:02:58]} 2. c4 {[%clk 0:03:01]}  c5 {[%clk 0:02:55]} 3. e3 {[%clk 0:02:58]}  g6 {[%clk 0:02:46]} 4. b3 {[%clk 0:02:54]}  Bg7 {[%clk 0:02:45]} 5. Bb2 {[%clk 0:02:55]}  O-O {[%clk 0:02:46]} 6. g3 {[%clk 0:02:56]}  d5 {[%clk 0:02:39]} 7. cxd5 {[%clk 0:02:54]}  Nxd5 {[%clk 0:02:29]} 8. Bxg7 {[%clk 0:02:54]}  Kxg7 {[%clk 0:02:30]} 9. Bg2 {[%clk 0:02:53]}  Nb4 {[%clk 0:02:08]} 10. O-O {[%clk 0:02:51]}  Nd3 {[%clk 0:02:07]} 11. Na3 {[%clk 0:02:46]}  Nc6 {[%clk 0:02:03]} 12. Nc4 {[%clk 0:02:45]}  Be6 {[%clk 0:02:02]} 13. Qc2 {[%clk 0:02:44]}  f6 {[%clk 0:01:55]} 14. a3 {[%clk 0:02:42]}  Qd7 {[%clk 0:01:52]} 15. Nb2 {[%clk 0:02:37]}  Rfd8 {[%clk 0:01:50]} 16. Nxd3 {[%clk 0:02:36]}  Qxd3 {[%clk 0:01:50]} 17. Qxc5 {[%clk 0:02:37]}  Rac8 {[%clk 0:01:41]} 18. b4 {[%clk 0:02:32]}  b6 {[%clk 0:01:32]} 19. Qc3 {[%clk 0:02:28]}  Ne5 {[%clk 0:01:07]} 20. Qxd3 {[%clk 0:02:24]}  Nxf3+ {[%clk 0:01:06]} 21. Bxf3 {[%clk 0:02:23]}  Rxd3 {[%clk 0:01:07]} 22. Rfd1 {[%clk 0:02:14]}  f5 {[%clk 0:00:45]} 23. Be2 {[%clk 0:02:12]}  Rb3 {[%clk 0:00:45]} 24. Kf1 {[%clk 0:02:08]}  Rc2 {[%clk 0:00:43]} 25. Ke1 {[%clk 0:01:54]}  Kf6 {[%clk 0:00:40]} 26. Bb5 {[%clk 0:01:51]}  Rcb2 {[%clk 0:00:19]} 27. Ba4 {[%clk 0:01:46]}  Rd3 {[%clk 0:00:19]} 28. Bb5 {[%clk 0:01:46]}  Rd8 {[%clk 0:00:15]} 29. Rac1 {[%clk 0:01:44]}  a5 {[%clk 0:00:11]} 30. Bc4 {[%clk 0:00:58]}  axb4 {[%clk 0:00:10]} 31. Bxe6 {[%clk 0:00:53]}  Kxe6 {[%clk 0:00:10]} 32. axb4 {[%clk 0:00:49]}  Rxb4 {[%clk 0:00:10]} 33. Rb1 {[%clk 0:00:49]}  Rxb1 {[%clk 0:00:09]} 34. Rxb1 {[%clk 0:00:50]}  Rb8 {[%clk 0:00:07]} 35. d4 {[%clk 0:00:48]}  Kd5 {[%clk 0:00:06]} 36. Kd2 {[%clk 0:00:48]}  b5 {[%clk 0:00:07]} 37. Kd3 {[%clk 0:00:48]}  e5 {[%clk 0:00:06]} 38. dxe5 {[%clk 0:00:48]}  Kxe5 {[%clk 0:00:07]} 39. f3 {[%clk 0:00:40]}  g5 {[%clk 0:00:07]} 40. Rb4 {[%clk 0:00:38]}  h5 {[%clk 0:00:07]} 41. h4 {[%clk 0:00:36]}  g4 {[%clk 0:00:06]} 42. f4+ {[%clk 0:00:35]}  Kd5 {[%clk 0:00:06]} 43. e4+ {[%clk 0:00:35]}  fxe4+ {[%clk 0:00:00]} 44. Rxe4 {[%clk 0:00:36]} 1-0


[Site "https://www.chess.com"]

[Event "Titled Tuesday Blitz May 23 Early 2023"]
[White "Hakobyan, Aram"]
[Black "Mendez Fortes, Eduardo Jesus"]
[WhiteFideId "13306677"]
[BlackFideId "3502376"]
[WhiteElo "2584"]
[BlackElo "2307"]
[Result "1-0"]
[Round "05"]
[TimeControl "180+2"]
[Date "2023.05.23"]
[WhiteClock "0:02:11"]
[BlackClock "0:02:36"]

1. d4 {[%clk 0:03:00]}  Nf6 {[%clk 0:02:59]} 2. c4 {[%clk 0:02:58]}  e6 {[%clk 0:03:00]} 3. Nc3 {[%clk 0:02:59]}  Bb4 {[%clk 0:03:00]} 4. e3 {[%clk 0:02:52]}  O-O {[%clk 0:02:59]} 5. a3 {[%clk 0:02:51]}  Bxc3+ {[%clk 0:02:59]} 6. bxc3 {[%clk 0:02:52]}  c5 {[%clk 0:02:59]} 7. Ne2 {[%clk 0:02:51]}  d6 {[%clk 0:03:00]} 8. Ng3 {[%clk 0:02:49]}  Nc6 {[%clk 0:03:00]} 9. Be2 {[%clk 0:02:48]}  b6 {[%clk 0:03:00]} 10. O-O {[%clk 0:02:48]}  Na5 {[%clk 0:03:00]} 11. e4 {[%clk 0:02:48]}  Ba6 {[%clk 0:02:56]} 12. f4 {[%clk 0:02:48]}  Bxc4 {[%clk 0:02:52]} 13. f5 {[%clk 0:02:48]}  exf5 {[%clk 0:02:49]} 14. Nxf5 {[%clk 0:02:13]}  Nxe4 {[%clk 0:02:49]} 15. Bxc4 {[%clk 0:02:12]}  Nxc4 {[%clk 0:02:47]} 16. Qg4 {[%clk 0:02:13]}  Qf6 {[%clk 0:02:36]} 17. Nh6+ {[%clk 0:02:11]} 1-0


[Site "https://www.chess.com"]

[Event "Titled Tuesday Blitz May 23 Early 2023"]
[White "Zhigalko, Sergei"]
[Black "Dehtiarov, Roman"]
[WhiteFideId "13502956"]
[BlackFideId "14186640"]
[WhiteElo "2626"]
[BlackElo "2189"]
[Result "1-0"]
[Round "05"]
[TimeControl "180+2"]
[Date "2023.05.23"]
[WhiteClock "0:00:13"]
[BlackClock "0:00:00"]

1. e4 {[%clk 0:03:00]}  e5 {[%clk 0:02:55]} 2. Nf3 {[%clk 0:03:00]}  Nc6 {[%clk 0:02:54]} 3. Bc4 {[%clk 0:03:00]}  Bc5 {[%clk 0:02:54]} 4. b4 {[%clk 0:03:01]}  Bxb4 {[%clk 0:02:51]} 5. c3 {[%clk 0:03:01]}  Be7 {[%clk 0:02:52]} 6. d4 {[%clk 0:03:02]}  Na5 {[%clk 0:02:51]} 7. Bd3 {[%clk 0:03:02]}  exd4 {[%clk 0:02:46]} 8. cxd4 {[%clk 0:03:02]}  d5 {[%clk 0:02:41]} 9. e5 {[%clk 0:02:41]}  Be6 {[%clk 0:02:28]} 10. O-O {[%clk 0:02:40]}  Nc6 {[%clk 0:02:20]} 11. Nc3 {[%clk 0:02:36]}  Bb4 {[%clk 0:02:13]} 12. Ne2 {[%clk 0:02:33]}  Nge7 {[%clk 0:02:13]} 13. Rb1 {[%clk 0:02:32]}  Ba5 {[%clk 0:02:06]} 14. Ng5 {[%clk 0:02:22]}  Qd7 {[%clk 0:01:35]} 15. Nf4 {[%clk 0:01:11]}  O-O-O {[%clk 0:01:09]} 16. Nfxe6 {[%clk 0:00:57]}  fxe6 {[%clk 0:01:08]} 17. Nf7 {[%clk 0:00:57]}  Bb6 {[%clk 0:01:05]} 18. Be3 {[%clk 0:00:54]}  Nf5 {[%clk 0:00:36]} 19. Nxh8 {[%clk 0:00:45]}  Rxh8 {[%clk 0:00:35]} 20. Bxf5 {[%clk 0:00:33]}  exf5 {[%clk 0:00:36]} 21. f4 {[%clk 0:00:34]}  Nd8 {[%clk 0:00:36]} 22. Kh1 {[%clk 0:00:31]}  Ne6 {[%clk 0:00:34]} 23. a4 {[%clk 0:00:32]}  a5 {[%clk 0:00:32]} 24. Rb5 {[%clk 0:00:31]}  Qc6 {[%clk 0:00:23]} 25. Qd3 {[%clk 0:00:26]}  Qc4 {[%clk 0:00:04]} 26. Qb1 {[%clk 0:00:20]}  Rd8 {[%clk 0:00:02]} 27. Rxb6 {[%clk 0:00:15]}  Qe2 {[%clk 0:00:00]} 28. Rb3 {[%clk 0:00:13]} 1-0


[Site "https://www.chess.com"]

[Event "Titled Tuesday Blitz May 23 Early 2023"]
[White "Pranesh M"]
[Black "Ehlvest, Jaan"]
[WhiteFideId "35028600"]
[BlackFideId "4500016"]
[WhiteElo "2437"]
[BlackElo "2442"]
[Result "1-0"]
[Round "05"]
[TimeControl "180+2"]
[Date "2023.05.23"]
[WhiteClock "0:00:04"]
[BlackClock "0:00:00"]

1. e4 {[%clk 0:03:00]}  c5 {[%clk 0:02:57]} 2. Nf3 {[%clk 0:03:00]}  Nc6 {[%clk 0:02:57]} 3. d4 {[%clk 0:03:00]}  cxd4 {[%clk 0:02:56]} 4. Nxd4 {[%clk 0:03:01]}  Nf6 {[%clk 0:02:55]} 5. Nc3 {[%clk 0:03:00]}  e6 {[%clk 0:02:53]} 6. Ndb5 {[%clk 0:02:58]}  Bc5 {[%clk 0:02:52]} 7. Bf4 {[%clk 0:02:56]}  O-O {[%clk 0:02:51]} 8. Bc7 {[%clk 0:02:56]}  Qe7 {[%clk 0:02:50]} 9. Bd6 {[%clk 0:02:57]}  Bxd6 {[%clk 0:02:50]} 10. Qxd6 {[%clk 0:02:57]}  Qd8 {[%clk 0:02:50]} 11. O-O-O {[%clk 0:02:58]}  a6 {[%clk 0:02:48]} 12. Nd4 {[%clk 0:02:58]}  Ne7 {[%clk 0:02:42]} 13. g4 {[%clk 0:02:58]}  b5 {[%clk 0:02:34]} 14. g5 {[%clk 0:02:57]}  Ne8 {[%clk 0:02:33]} 15. Qg3 {[%clk 0:02:57]}  b4 {[%clk 0:02:31]} 16. Nce2 {[%clk 0:02:55]}  Bb7 {[%clk 0:02:31]} 17. Bg2 {[%clk 0:02:56]}  Rc8 {[%clk 0:02:27]} 18. Kb1 {[%clk 0:02:56]}  d6 {[%clk 0:02:23]} 19. h4 {[%clk 0:02:53]}  Qc7 {[%clk 0:02:21]} 20. Rc1 {[%clk 0:02:45]}  e5 {[%clk 0:01:59]} 21. Nf5 {[%clk 0:02:41]}  d5 {[%clk 0:01:59]} 22. Nxe7+ {[%clk 0:02:38]}  Qxe7 {[%clk 0:01:59]} 23. exd5 {[%clk 0:02:38]}  Nd6 {[%clk 0:01:57]} 24. h5 {[%clk 0:02:39]}  f5 {[%clk 0:01:47]} 25. f4 {[%clk 0:02:07]}  Nc4 {[%clk 0:01:31]} 26. d6 {[%clk 0:02:00]}  Nxd6 {[%clk 0:01:24]} 27. Bxb7 {[%clk 0:01:57]}  Qxb7 {[%clk 0:01:23]} 28. fxe5 {[%clk 0:01:57]}  Nc4 {[%clk 0:01:17]} 29. Nf4 {[%clk 0:01:40]}  Qe4 {[%clk 0:01:15]} 30. Rhe1 {[%clk 0:01:32]}  Qd4 {[%clk 0:01:14]} 31. Nd3 {[%clk 0:01:18]}  Na3+ {[%clk 0:00:50]} 32. bxa3 {[%clk 0:01:18]}  bxa3 {[%clk 0:00:50]} 33. Rcd1 {[%clk 0:01:18]}  Qc3 {[%clk 0:00:46]} 34. Qf2 {[%clk 0:00:48]}  Rfd8 {[%clk 0:00:37]} 35. Kc1 {[%clk 0:00:07]}  Qa1+ {[%clk 0:00:21]} 36. Kd2 {[%clk 0:00:06]}  Rxc2+ {[%clk 0:00:20]} 37. Kxc2 {[%clk 0:00:06]}  Qxa2+ {[%clk 0:00:19]} 38. Kc3 {[%clk 0:00:06]}  Rxd3+ {[%clk 0:00:14]} 39. Kxd3 {[%clk 0:00:04]}  Qxf2 {[%clk 0:00:15]} 40. e6 {[%clk 0:00:04]}  Kf8 {[%clk 0:00:14]} 41. Kc3 {[%clk 0:00:03]}  Qb2+ {[%clk 0:00:12]} 42. Kc4 {[%clk 0:00:03]}  Qb5+ {[%clk 0:00:09]} 43. Kc3 {[%clk 0:00:04]}  a2 {[%clk 0:00:00]} 44. e7+ {[%clk 0:00:04]} 1-0


[Site "https://www.chess.com"]

[Event "Titled Tuesday Blitz May 23 Early 2023"]
[White "Schnaider, Ilan"]
[Black "Drygalov, Sergey"]
[WhiteFideId "169013"]
[BlackFideId "24171743"]
[WhiteElo "2224"]
[BlackElo "2533"]
[Result "0-1"]
[Round "05"]
[TimeControl "180+2"]
[Date "2023.05.23"]
[WhiteClock "0:00:24"]
[BlackClock "0:00:13"]

1. e4 {[%clk 0:03:00]}  c5 {[%clk 0:02:49]} 2. Nf3 {[%clk 0:03:00]}  d6 {[%clk 0:02:49]} 3. Bb5+ {[%clk 0:02:57]}  Nd7 {[%clk 0:02:49]} 4. O-O {[%clk 0:02:54]}  Nf6 {[%clk 0:02:49]} 5. Re1 {[%clk 0:02:53]}  a6 {[%clk 0:02:49]} 6. Bd3 {[%clk 0:02:51]}  e6 {[%clk 0:02:45]} 7. c3 {[%clk 0:02:51]}  b5 {[%clk 0:02:44]} 8. Bc2 {[%clk 0:02:52]}  c4 {[%clk 0:02:43]} 9. a4 {[%clk 0:02:49]}  Bb7 {[%clk 0:02:43]} 10. d4 {[%clk 0:02:48]}  cxd3 {[%clk 0:02:42]} 11. Bxd3 {[%clk 0:02:48]}  bxa4 {[%clk 0:02:42]} 12. Qxa4 {[%clk 0:02:47]}  Be7 {[%clk 0:02:42]} 13. Be3 {[%clk 0:01:57]}  O-O {[%clk 0:02:41]} 14. Na3 {[%clk 0:01:56]}  Ng4 {[%clk 0:02:39]} 15. Bd4 {[%clk 0:01:31]}  e5 {[%clk 0:02:36]} 16. Be3 {[%clk 0:01:31]}  Nxe3 {[%clk 0:02:34]} 17. Rxe3 {[%clk 0:01:32]}  Nc5 {[%clk 0:02:34]} 18. Qc2 {[%clk 0:01:31]}  Kh8 {[%clk 0:01:56]} 19. Nc4 {[%clk 0:01:21]}  f5 {[%clk 0:01:55]} 20. Nfd2 {[%clk 0:00:26]}  fxe4 {[%clk 0:01:48]} 21. Nxe4 {[%clk 0:00:18]}  Nxd3 {[%clk 0:01:39]} 22. Qxd3 {[%clk 0:00:15]}  Bxe4 {[%clk 0:01:38]} 23. Rxe4 {[%clk 0:00:04]}  d5 {[%clk 0:01:38]} 24. Rxe5 {[%clk 0:00:03]}  dxc4 {[%clk 0:01:38]} 25. Qxc4 {[%clk 0:00:02]}  Bd6 {[%clk 0:01:35]} 26. Re2 {[%clk 0:00:01]}  a5 {[%clk 0:01:27]} 27. Rae1 {[%clk 0:00:02]}  Qf6 {[%clk 0:01:27]} 28. h3 {[%clk 0:00:02]}  Rab8 {[%clk 0:01:23]} 29. Qd5 {[%clk 0:00:02]}  Qf4 {[%clk 0:01:21]} 30. g3 {[%clk 0:00:01]}  Qf6 {[%clk 0:01:21]} 31. Qh5 {[%clk 0:00:02]}  a4 {[%clk 0:01:17]} 32. Qa5 {[%clk 0:00:01]}  Qf3 {[%clk 0:01:13]} 33. Qg5 {[%clk 0:00:01]}  a3 {[%clk 0:01:03]} 34. bxa3 {[%clk 0:00:02]}  Qxc3 {[%clk 0:01:01]} 35. Qd5 {[%clk 0:00:02]}  Qxa3 {[%clk 0:00:57]} 36. Kg2 {[%clk 0:00:02]}  Bc5 {[%clk 0:00:55]} 37. Qe4 {[%clk 0:00:01]}  Qa7 {[%clk 0:00:55]} 38. f4 {[%clk 0:00:01]}  Qc7 {[%clk 0:00:53]} 39. Qf3 {[%clk 0:00:01]}  Bd4 {[%clk 0:00:52]} 40. h4 {[%clk 0:00:02]}  Bf6 {[%clk 0:00:52]} 41. Re4 {[%clk 0:00:02]}  Rb2+ {[%clk 0:00:50]} 42. R4e2 {[%clk 0:00:02]}  Rxe2+ {[%clk 0:00:43]} 43. Rxe2 {[%clk 0:00:03]}  Rc8 {[%clk 0:00:41]} 44. Qe4 {[%clk 0:00:03]}  Qd7 {[%clk 0:00:30]} 45. Qf3 {[%clk 0:00:02]}  h6 {[%clk 0:00:29]} 46. h5 {[%clk 0:00:02]}  Qf5 {[%clk 0:00:24]} 47. g4 {[%clk 0:00:02]}  Qb5 {[%clk 0:00:21]} 48. Qe3 {[%clk 0:00:02]}  Rb8 {[%clk 0:00:20]} 49. Rd2 {[%clk 0:00:02]}  Qc6+ {[%clk 0:00:21]} 50. Qf3 {[%clk 0:00:02]}  Qxf3+ {[%clk 0:00:20]} 51. Kxf3 {[%clk 0:00:03]}  Kh7 {[%clk 0:00:21]} 52. Ke4 {[%clk 0:00:03]}  Rb4+ {[%clk 0:00:20]} 53. Kf3 {[%clk 0:00:04]}  Rxf4+ {[%clk 0:00:20]} 54. Kg3 {[%clk 0:00:04]}  Bg5 {[%clk 0:00:21]} 55. Rd7 {[%clk 0:00:03]}  Rf6 {[%clk 0:00:21]} 56. Rb7 {[%clk 0:00:02]}  Kg8 {[%clk 0:00:21]} 57. Rb8+ {[%clk 0:00:02]}  Kh7 {[%clk 0:00:21]} 58. Rb7 {[%clk 0:00:03]}  Bf4+ {[%clk 0:00:21]} 59. Kh3 {[%clk 0:00:03]}  Be5 {[%clk 0:00:22]} 60. Kg2 {[%clk 0:00:03]}  Rf4 {[%clk 0:00:21]} 61. Kh3 {[%clk 0:00:03]}  Rf3+ {[%clk 0:00:21]} 62. Kh4 {[%clk 0:00:03]}  Bf6+ {[%clk 0:00:20]} 63. g5 {[%clk 0:00:04]}  Bxg5+ {[%clk 0:00:21]} 64. Kg4 {[%clk 0:00:05]}  Rf4+ {[%clk 0:00:22]} 65. Kg3 {[%clk 0:00:06]}  Rh4 {[%clk 0:00:22]} 66. Rb8 {[%clk 0:00:04]}  Bf4+ {[%clk 0:00:22]} 67. Kxh4 {[%clk 0:00:05]}  Bxb8 {[%clk 0:00:22]} 68. Kg4 {[%clk 0:00:06]}  Be5 {[%clk 0:00:23]} 69. Kf5 {[%clk 0:00:06]}  Bf6 {[%clk 0:00:23]} 70. Ke6 {[%clk 0:00:06]}  Kg8 {[%clk 0:00:24]} 71. Kf5 {[%clk 0:00:06]}  Kf7 {[%clk 0:00:24]} 72. Kf4 {[%clk 0:00:07]}  Ke6 {[%clk 0:00:25]} 73. Ke4 {[%clk 0:00:07]}  Bg5 {[%clk 0:00:25]} 74. Kf3 {[%clk 0:00:07]}  Kf5 {[%clk 0:00:26]} 75. Kg3 {[%clk 0:00:08]}  Bf6 {[%clk 0:00:26]} 76. Kf3 {[%clk 0:00:08]}  Kg5 {[%clk 0:00:27]} 77. Kg3 {[%clk 0:00:09]}  Kxh5 {[%clk 0:00:28]} 78. Kh3 {[%clk 0:00:09]}  Kg5 {[%clk 0:00:28]} 79. Kg3 {[%clk 0:00:10]}  h5 {[%clk 0:00:29]} 80. Kg2 {[%clk 0:00:11]}  Kg4 {[%clk 0:00:29]} 81. Kh2 {[%clk 0:00:12]}  g5 {[%clk 0:00:29]} 82. Kg2 {[%clk 0:00:12]}  h4 {[%clk 0:00:30]} 83. Kg1 {[%clk 0:00:13]}  Kf3 {[%clk 0:00:30]} 84. Kh1 {[%clk 0:00:14]}  g4 {[%clk 0:00:30]} 85. Kg1 {[%clk 0:00:15]}  g3 {[%clk 0:00:31]} 86. Kh1 {[%clk 0:00:16]}  g2+ {[%clk 0:00:31]} 87. Kg1 {[%clk 0:00:17]}  Bd4+ {[%clk 0:00:29]} 88. Kh2 {[%clk 0:00:18]}  g1=N {[%clk 0:00:24]} 89. Kh1 {[%clk 0:00:18]}  Ne2 {[%clk 0:00:24]} 90. Kh2 {[%clk 0:00:19]}  Nf4 {[%clk 0:00:24]} 91. Kh1 {[%clk 0:00:19]}  Be5 {[%clk 0:00:23]} 92. Kh2 {[%clk 0:00:20]}  Bd6 {[%clk 0:00:23]} 93. Kh1 {[%clk 0:00:20]}  Kg3 {[%clk 0:00:24]} 94. Kg1 {[%clk 0:00:21]}  h3 {[%clk 0:00:23]} 95. Kh1 {[%clk 0:00:22]}  Nd5 {[%clk 0:00:22]} 96. Kg1 {[%clk 0:00:22]}  Ne3 {[%clk 0:00:22]} 97. Kh1 {[%clk 0:00:23]}  Ng4 {[%clk 0:00:21]} 98. Kg1 {[%clk 0:00:24]}  h2+ {[%clk 0:00:21]} 99. Kh1 {[%clk 0:00:24]}  Nf2# {[%clk 0:00:13]} 0-1


[Site "https://www.chess.com"]

[Event "Titled Tuesday Blitz May 23 Early 2023"]
[White "Fridman, Daniel"]
[Black "Ilkhomi, Jaloliddin"]
[WhiteFideId "11600454"]
[BlackFideId "14700948"]
[WhiteElo "2525"]
[BlackElo "2045"]
[Result "1-0"]
[Round "05"]
[TimeControl "180+2"]
[Date "2023.05.23"]
[WhiteClock "0:00:38"]
[BlackClock "0:00:05"]

1. d4 {[%clk 0:03:00]}  Nf6 {[%clk 0:02:59]} 2. Nf3 {[%clk 0:03:01]}  e6 {[%clk 0:02:59]} 3. c4 {[%clk 0:03:01]}  b6 {[%clk 0:02:58]} 4. g3 {[%clk 0:03:00]}  Bb7 {[%clk 0:02:59]} 5. Bg2 {[%clk 0:03:00]}  Be7 {[%clk 0:02:59]} 6. O-O {[%clk 0:03:00]}  O-O {[%clk 0:03:00]} 7. Re1 {[%clk 0:03:00]}  d5 {[%clk 0:02:55]} 8. Ne5 {[%clk 0:02:59]}  Nbd7 {[%clk 0:02:56]} 9. Nc3 {[%clk 0:02:59]}  Rc8 {[%clk 0:02:48]} 10. Qa4 {[%clk 0:02:51]}  Nxe5 {[%clk 0:02:33]} 11. dxe5 {[%clk 0:02:51]}  Nd7 {[%clk 0:02:34]} 12. cxd5 {[%clk 0:02:49]}  exd5 {[%clk 0:02:14]} 13. Nxd5 {[%clk 0:02:38]}  Bxd5 {[%clk 0:02:07]} 14. Bxd5 {[%clk 0:02:35]}  Nxe5 {[%clk 0:02:01]} 15. Rd1 {[%clk 0:02:33]}  Bd6 {[%clk 0:02:00]} 16. Qxa7 {[%clk 0:02:26]}  Qf6 {[%clk 0:02:00]} 17. Qa4 {[%clk 0:02:18]}  Rcd8 {[%clk 0:01:56]} 18. Qf4 {[%clk 0:01:54]}  Qg6 {[%clk 0:01:51]} 19. Qg5 {[%clk 0:01:48]}  Qc2 {[%clk 0:01:42]} 20. Qd2 {[%clk 0:01:48]}  Qf5 {[%clk 0:01:39]} 21. Qg5 {[%clk 0:01:34]}  Qc2 {[%clk 0:01:27]} 22. Rd2 {[%clk 0:01:34]}  Qc5 {[%clk 0:01:24]} 23. Qf5 {[%clk 0:01:09]}  c6 {[%clk 0:01:13]} 24. Bb3 {[%clk 0:01:03]}  g6 {[%clk 0:01:01]} 25. Qc2 {[%clk 0:01:03]}  Qb4 {[%clk 0:00:48]} 26. Rd1 {[%clk 0:01:00]}  Be7 {[%clk 0:00:34]} 27. Bh6 {[%clk 0:00:56]}  Rfe8 {[%clk 0:00:33]} 28. h3 {[%clk 0:00:51]}  Bf6 {[%clk 0:00:31]} 29. Rxd8 {[%clk 0:00:46]}  Rxd8 {[%clk 0:00:32]} 30. Rd1 {[%clk 0:00:45]}  Qe7 {[%clk 0:00:29]} 31. Rxd8+ {[%clk 0:00:41]}  Qxd8 {[%clk 0:00:30]} 32. f4 {[%clk 0:00:39]}  Qd4+ {[%clk 0:00:29]} 33. Kg2 {[%clk 0:00:39]}  Nd7 {[%clk 0:00:23]} 34. Qxc6 {[%clk 0:00:38]}  Nf8 {[%clk 0:00:13]} 35. Qe8 {[%clk 0:00:38]}  Bg7 {[%clk 0:00:05]} 36. Qxf7+ {[%clk 0:00:38]} 1-0


[Site "https://www.chess.com"]

[Event "Titled Tuesday Blitz May 23 Early 2023"]
[White "Remizov, Yaroslav"]
[Black "Tasev, Dejan"]
[WhiteFideId "34134015"]
[BlackFideId "936618"]
[WhiteElo "2400"]
[BlackElo "2244"]
[Result "0-1"]
[Round "05"]
[TimeControl "180+2"]
[Date "2023.05.23"]
[WhiteClock "0:00:00"]
[BlackClock "0:00:19"]

1. e4 {[%clk 0:03:00]}  e5 {[%clk 0:02:56]} 2. Nf3 {[%clk 0:02:56]}  Nc6 {[%clk 0:02:56]} 3. Nc3 {[%clk 0:02:56]}  g6 {[%clk 0:02:56]} 4. g3 {[%clk 0:02:47]}  Bg7 {[%clk 0:02:55]} 5. Bg2 {[%clk 0:02:47]}  Nge7 {[%clk 0:02:55]} 6. O-O {[%clk 0:02:48]}  O-O {[%clk 0:02:55]} 7. Re1 {[%clk 0:02:48]}  d6 {[%clk 0:02:52]} 8. d3 {[%clk 0:02:45]}  h6 {[%clk 0:02:51]} 9. Nd5 {[%clk 0:02:36]}  Nxd5 {[%clk 0:02:46]} 10. exd5 {[%clk 0:02:36]}  Ne7 {[%clk 0:02:47]} 11. d4 {[%clk 0:02:32]}  exd4 {[%clk 0:02:42]} 12. Nxd4 {[%clk 0:02:31]}  Nf5 {[%clk 0:02:39]} 13. Nb3 {[%clk 0:02:10]}  a5 {[%clk 0:02:34]} 14. a4 {[%clk 0:02:03]}  b6 {[%clk 0:02:33]} 15. c3 {[%clk 0:02:01]}  Ba6 {[%clk 0:02:28]} 16. Bf4 {[%clk 0:01:46]}  Qf6 {[%clk 0:02:19]} 17. Nd2 {[%clk 0:01:36]}  g5 {[%clk 0:02:11]} 18. Ne4 {[%clk 0:01:29]}  Qg6 {[%clk 0:02:06]} 19. Bd2 {[%clk 0:01:29]}  Rfe8 {[%clk 0:02:02]} 20. Qf3 {[%clk 0:01:27]}  g4 {[%clk 0:01:40]} 21. Qf4 {[%clk 0:01:07]}  Be5 {[%clk 0:01:27]} 22. Nf6+ {[%clk 0:00:56]}  Bxf6 {[%clk 0:01:21]} 23. Be4 {[%clk 0:00:52]}  Bg5 {[%clk 0:00:53]} 24. Qxf5 {[%clk 0:00:51]}  Qxf5 {[%clk 0:00:52]} 25. Bxf5 {[%clk 0:00:52]}  Bxd2 {[%clk 0:00:52]} 26. Red1 {[%clk 0:00:52]}  Bg5 {[%clk 0:00:50]} 27. Bxg4 {[%clk 0:00:51]}  Be2 {[%clk 0:00:50]} 28. Bxe2 {[%clk 0:00:48]}  Rxe2 {[%clk 0:00:49]} 29. Rab1 {[%clk 0:00:41]}  Bf6 {[%clk 0:00:44]} 30. Rd3 {[%clk 0:00:36]}  Kg7 {[%clk 0:00:42]} 31. Kg2 {[%clk 0:00:34]}  Rae8 {[%clk 0:00:40]} 32. Rf3 {[%clk 0:00:35]}  Rc2 {[%clk 0:00:39]} 33. b4 {[%clk 0:00:31]}  axb4 {[%clk 0:00:35]} 34. cxb4 {[%clk 0:00:31]}  Ree2 {[%clk 0:00:34]} 35. a5 {[%clk 0:00:26]}  bxa5 {[%clk 0:00:34]} 36. bxa5 {[%clk 0:00:26]}  Ra2 {[%clk 0:00:35]} 37. Rb7 {[%clk 0:00:15]}  Rec2 {[%clk 0:00:31]} 38. Ra7 {[%clk 0:00:09]}  Bd4 {[%clk 0:00:25]} 39. Ra8 {[%clk 0:00:09]}  Rxf2+ {[%clk 0:00:25]} 40. Rxf2 {[%clk 0:00:09]}  Rxf2+ {[%clk 0:00:25]} 41. Kh3 {[%clk 0:00:10]}  Ra2 {[%clk 0:00:24]} 42. a6 {[%clk 0:00:10]}  Bg1 {[%clk 0:00:22]} 43. Kg4 {[%clk 0:00:10]}  Bxh2 {[%clk 0:00:20]} 44. Kf3 {[%clk 0:00:08]}  Bg1 {[%clk 0:00:20]} 45. Ke4 {[%clk 0:00:09]}  Bb6 {[%clk 0:00:20]} 46. Kd3 {[%clk 0:00:09]}  Ra5 {[%clk 0:00:20]} 47. Kc4 {[%clk 0:00:09]}  Rc5+ {[%clk 0:00:20]} 48. Kd4 {[%clk 0:00:10]}  Ra5+ {[%clk 0:00:19]} 49. Kc4 {[%clk 0:00:09]}  h5 {[%clk 0:00:20]} 50. Kd3 {[%clk 0:00:05]}  Kg6 {[%clk 0:00:20]} 51. Ke4 {[%clk 0:00:05]}  Ra4+ {[%clk 0:00:20]} 52. Kf3 {[%clk 0:00:04]}  f5 {[%clk 0:00:20]} 53. Rg8+ {[%clk 0:00:02]}  Kf6 {[%clk 0:00:20]} 54. a7 {[%clk 0:00:03]}  Rxa7 {[%clk 0:00:19]} 55. Re8 {[%clk 0:00:04]}  Ra3+ {[%clk 0:00:19]} 56. Kg2 {[%clk 0:00:04]}  Rd3 {[%clk 0:00:18]} 57. Re6+ {[%clk 0:00:04]}  Kg5 {[%clk 0:00:17]} 58. Kh3 {[%clk 0:00:03]}  Rxd5 {[%clk 0:00:17]} 59. Re2 {[%clk 0:00:04]}  Rd3 {[%clk 0:00:17]} 60. Kg2 {[%clk 0:00:04]}  f4 {[%clk 0:00:17]} 61. gxf4+ {[%clk 0:00:03]}  Kxf4 {[%clk 0:00:18]} 62. Re8 {[%clk 0:00:04]}  h4 {[%clk 0:00:18]} 63. Kh1 {[%clk 0:00:04]}  c5 {[%clk 0:00:17]} 64. Rf8+ {[%clk 0:00:04]}  Ke4 {[%clk 0:00:17]} 65. Re8+ {[%clk 0:00:05]}  Kd5 {[%clk 0:00:18]} 66. Rh8 {[%clk 0:00:05]}  h3 {[%clk 0:00:18]} 67. Rh5+ {[%clk 0:00:05]}  Kc6 {[%clk 0:00:19]} 68. Rf5 {[%clk 0:00:04]}  Bc7 {[%clk 0:00:19]} 69. Rf6 {[%clk 0:00:03]}  c4 {[%clk 0:00:18]} 70. Kh2 {[%clk 0:00:03]}  c3 {[%clk 0:00:18]} 71. Rf1 {[%clk 0:00:01]}  d5+ {[%clk 0:00:18]} 72. Kh1 {[%clk 0:00:02]}  d4 {[%clk 0:00:19]} 73. Rc1 {[%clk 0:00:02]}  Kd5 {[%clk 0:00:19]} 74. Kg1 {[%clk 0:00:02]}  Kc4 {[%clk 0:00:19]} 75. Ra1 {[%clk 0:00:03]}  c2 {[%clk 0:00:19]} 76. Ra4+ {[%clk 0:00:03]}  Kb5 {[%clk 0:00:19]} 77. Ra1 {[%clk 0:00:02]}  Rd1+ {[%clk 0:00:19]} 78. Kf2 {[%clk 0:00:03]}  c1=Q {[%clk 0:00:20]} 79. Ra2 {[%clk 0:00:00]}  Rd2+ {[%clk 0:00:19]} 0-1


[Site "https://www.chess.com"]